Workbook

Sheet Baza
A1: ZS1406 | B1: 375582 | C1: 2 | D1: 375583 | E1: 2 | F1: 375589 | G1: 2 | H1: 375586 | I1: 1 | J1: 375587 | K1: 1
A2: ZS216 | B2: 394651 | C2: 2 | D2: 394652 | E2: 2 | F2: 394650 | G2: 1 | H2: 394653 | I2: 1 | J2: 394654 | K2: 1 | L2: 394655 | M2: 1
A3: ZS216E | B3: 394651 | C3: 2 | D3: 394652 | E3: 2 | F3: 394650 | G3: 1 | H3: 394653 | I3: 1 | J3: 394654 | K3: 1 | L3: 394655 | M3: 1 | N3: 384477 | O3: 1

Sheet Sheet2
A1: Tip | B1: Količina | W1: Šifra | X1: Količina
A3: ZS216 | B3: 460 | D3: =VLOOKUP($A3,Baza!$A:$T,2,) -> 394651 | E3: =VLOOKUP($A3,Baza!$A:$T,3,)*$B3 -> 920 | F3: =VLOOKUP($A3,Baza!$A:$T,4,) -> 394652 | G3: =VLOOKUP($A3,Baza!$A:$T,5,)*$B3 -> 920 | H3: =VLOOKUP($A3,Baza!$A:$T,6,) -> 394650 | I3: =VLOOKUP($A3,Baza!$A:$T,7,)*$B3 -> 460 | J3: =VLOOKUP($A3,Baza!$A:$T,8,) -> 394653 | K3: =VLOOKUP($A3,Baza!$A:$T,9,)*$B3 -> 460 | L3: =VLOOKUP($A3,Baza!$A:$T,10,) -> 394654 | M3: =VLOOKUP($A3,Baza!$A:$T,11,)*$B3 -> 460 | N3: =VLOOKUP($A3,Baza!$A:$T,12,) -> 394655 | O3: =VLOOKUP($A3,Baza!$A:$T,13,)*$B3 -> 460 | P3: =VLOOKUP($A3,Baza!$A:$T,14,) -> 0 | Q3: =VLOOKUP($A3,Baza!$A:$T,15,)*$B3 -> 0 | R3: =VLOOKUP($A3,Baza!$A:$T,16,) -> 0 | S3: =VLOOKUP($A3,Baza!$A:$T,17,)*$B3 -> 0 | T3: =VLOOKUP($A3,Baza!$A:$T,18,) -> 0 | U3: =VLOOKUP($A3,Baza!$A:$T,19,)*$B3 -> 0 | W3: 375582 | X3: =Saberi(W3,$D$3:$U$7) -> 1660
A4: ZS1406 | B4: 320 | D4: =VLOOKUP($A4,Baza!$A:$T,2,) -> 375582 | E4: =VLOOKUP($A4,Baza!$A:$T,3,)*$B4 -> 640 | F4: =VLOOKUP($A4,Baza!$A:$T,4,) -> 375583 | G4: =VLOOKUP($A4,Baza!$A:$T,5,)*$B4 -> 640 | H4: =VLOOKUP($A4,Baza!$A:$T,6,) -> 375589 | I4: =VLOOKUP($A4,Baza!$A:$T,7,)*$B4 -> 640 | J4: =VLOOKUP($A4,Baza!$A:$T,8,) -> 375586 | K4: =VLOOKUP($A4,Baza!$A:$T,9,)*$B4 -> 320 | L4: =VLOOKUP($A4,Baza!$A:$T,10,) -> 375587 | M4: =VLOOKUP($A4,Baza!$A:$T,11,)*$B4 -> 320 | N4: =VLOOKUP($A4,Baza!$A:$T,12,) -> 0 | O4: =VLOOKUP($A4,Baza!$A:$T,13,)*$B4 -> 0 | P4: =VLOOKUP($A4,Baza!$A:$T,14,) -> 0 | Q4: =VLOOKUP($A4,Baza!$A:$T,15,)*$B4 -> 0 | R4: =VLOOKUP($A4,Baza!$A:$T,16,) -> 0 | S4: =VLOOKUP($A4,Baza!$A:$T,17,)*$B4 -> 0 | T4: =VLOOKUP($A4,Baza!$A:$T,18,) -> 0 | U4: =VLOOKUP($A4,Baza!$A:$T,19,)*$B4 -> 0 | W4: 375583 | X4: =Saberi(W4,$D$3:$U$7) -> 1660
A5: ZS216 | B5: 80 | D5: =VLOOKUP($A5,Baza!$A:$T,2,) -> 394651 | E5: =VLOOKUP($A5,Baza!$A:$T,3,)*$B5 -> 160 | F5: =VLOOKUP($A5,Baza!$A:$T,4,) -> 394652 | G5: =VLOOKUP($A5,Baza!$A:$T,5,)*$B5 -> 160 | H5: =VLOOKUP($A5,Baza!$A:$T,6,) -> 394650 | I5: =VLOOKUP($A5,Baza!$A:$T,7,)*$B5 -> 80 | J5: =VLOOKUP($A5,Baza!$A:$T,8,) -> 394653 | K5: =VLOOKUP($A5,Baza!$A:$T,9,)*$B5 -> 80 | L5: =VLOOKUP($A5,Baza!$A:$T,10,) -> 394654 | M5: =VLOOKUP($A5,Baza!$A:$T,11,)*$B5 -> 80 | N5: =VLOOKUP($A5,Baza!$A:$T,12,) -> 394655 | O5: =VLOOKUP($A5,Baza!$A:$T,13,)*$B5 -> 80 | P5: =VLOOKUP($A5,Baza!$A:$T,14,) -> 0 | Q5: =VLOOKUP($A5,Baza!$A:$T,15,)*$B5 -> 0 | R5: =VLOOKUP($A5,Baza!$A:$T,16,) -> 0 | S5: =VLOOKUP($A5,Baza!$A:$T,17,)*$B5 -> 0 | T5: =VLOOKUP($A5,Baza!$A:$T,18,) -> 0 | U5: =VLOOKUP($A5,Baza!$A:$T,19,)*$B5 -> 0 | W5: 375586 | X5: 830
A6: ZS216e | B6: 150 | D6: =VLOOKUP($A6,Baza!$A:$T,2,) -> 394651 | E6: =VLOOKUP($A6,Baza!$A:$T,3,)*$B6 -> 300 | F6: =VLOOKUP($A6,Baza!$A:$T,4,) -> 394652 | G6: =VLOOKUP($A6,Baza!$A:$T,5,)*$B6 -> 300 | H6: =VLOOKUP($A6,Baza!$A:$T,6,) -> 394650 | I6: =VLOOKUP($A6,Baza!$A:$T,7,)*$B6 -> 150 | J6: =VLOOKUP($A6,Baza!$A:$T,8,) -> 394653 | K6: =VLOOKUP($A6,Baza!$A:$T,9,)*$B6 -> 150 | L6: =VLOOKUP($A6,Baza!$A:$T,10,) -> 394654 | M6: =VLOOKUP($A6,Baza!$A:$T,11,)*$B6 -> 150 | N6: =VLOOKUP($A6,Baza!$A:$T,12,) -> 394655 | O6: =VLOOKUP($A6,Baza!$A:$T,13,)*$B6 -> 150 | P6: =VLOOKUP($A6,Baza!$A:$T,14,) -> 384477 | Q6: =VLOOKUP($A6,Baza!$A:$T,15,)*$B6 -> 150 | R6: =VLOOKUP($A6,Baza!$A:$T,16,) -> 0 | S6: =VLOOKUP($A6,Baza!$A:$T,17,)*$B6 -> 0 | T6: =VLOOKUP($A6,Baza!$A:$T,18,) -> 0 | U6: =VLOOKUP($A6,Baza!$A:$T,19,)*$B6 -> 0 | W6: 375587 | X6: 830
A7: ZS1406 | B7: 510 | D7: =VLOOKUP($A7,Baza!$A:$T,2,) -> 375582 | E7: =VLOOKUP($A7,Baza!$A:$T,3,)*$B7 -> 1020 | F7: =VLOOKUP($A7,Baza!$A:$T,4,) -> 375583 | G7: =VLOOKUP($A7,Baza!$A:$T,5,)*$B7 -> 1020 | H7: =VLOOKUP($A7,Baza!$A:$T,6,) -> 375589 | I7: =VLOOKUP($A7,Baza!$A:$T,7,)*$B7 -> 1020 | J7: =VLOOKUP($A7,Baza!$A:$T,8,) -> 375586 | K7: =VLOOKUP($A7,Baza!$A:$T,9,)*$B7 -> 510 | L7: =VLOOKUP($A7,Baza!$A:$T,10,) -> 375587 | M7: =VLOOKUP($A7,Baza!$A:$T,11,)*$B7 -> 510 | N7: =VLOOKUP($A7,Baza!$A:$T,12,) -> 0 | O7: =VLOOKUP($A7,Baza!$A:$T,13,)*$B7 -> 0 | P7: =VLOOKUP($A7,Baza!$A:$T,14,) -> 0 | Q7: =VLOOKUP($A7,Baza!$A:$T,15,)*$B7 -> 0 | R7: =VLOOKUP($A7,Baza!$A:$T,16,) -> 0 | S7: =VLOOKUP($A7,Baza!$A:$T,17,)*$B7 -> 0 | T7: =VLOOKUP($A7,Baza!$A:$T,18,) -> 0 | U7: =VLOOKUP($A7,Baza!$A:$T,19,)*$B7 -> 0 | W7: 375589 | X7: 1660
W8: 384477 | X8: 150
W9: 394650 | X9: 690
W10: 394651 | X10: 1380
W11: 394652 | X11: 1380
W12: 394653 | X12: 690
W13: 394654 | X13: 690
W14: 394655 | X14: 690
V16: Opis funkcije
V17: =Saberi(Sifra;Opseg)
V18: Sifra | W18: polje u kome ti se nalazi sifra za uslov sabiranja (u tvom slucaju to je recimo polje W1)
V19: Opseg | W19: opseg polja u kojima ti se nalaze sifre I vrednosti (u tvom slucaju to je opseg polja D3:U7)
V21: Napomena: | W21: ovo je funkcija napisana u VBA (Alt+F11 I videti Module1) I poziva se kao I svaka druga ugradjena funkcija
